bitfinex/quotes_ETHUSD_20220309
["timestamp","ask_amount","ask_price","bid_price","bid_amount"]
[1646820609415,0.18669927,2759.2,2758.4,1.1807]
[1646820609615,0.18669927,2759.2,2758.6,1.22112157]
[1646820609816,0.18669927,2759.2,2758.4,1.1807]
[1646820610018,0.1812,2759.1,2758.4,1.1807]
[1646820610221,0.18423794,2759.0,2758.4,1.1807]
[1646820610421,0.1812,2758.9,2758.4,1.1807]
[1646820610722,0.18423794,2758.8,2758.4,1.1807]
[1646820610921,0.1812,2758.7,2758.2,0.96606549]
[1646820611123,0.18423794,2758.6,2758.2,0.96606549]
[1646820611425,0.24196526,2758.1,2757.8,5.4092]
[1646820611623,0.24196526,2758.1,2757.7,2.5036]
[1646820612023,0.24196526,2758.1,2757.7,2.532768]
[1646820612225,0.24196526,2758.1,2757.8,1.65643471]
[1646820612427,0.24196526,2758.1,2757.9,1.29383471]
[1646820612626,1.0,2759.0,2758.0,6.029168]
[1646820612874,0.17958757,2758.9,2758.2,0.029168]
[1646820613073,0.17958757,2758.8,2758.2,0.029168]
[1646820613271,0.18936142,2759.2,2758.2,0.029168]
[1646820613473,0.17946569,2759.1,2759.0,0.99344751]
[1646820614972,0.03860426,2758.8,2758.7,0.029168]
[1646820615977,0.03860426,2758.8,2758.7,0.99786087]
[1646820617024,0.03860426,2758.8,2758.7,2.59786087]
[1646820620283,0.03860426,2758.8,2758.2,1.247668]
[1646820620284,0.03860426,2758.8,2758.2,1.2185]
[1646820620473,0.17951337,2758.7,2758.2,1.2185]
[1646820621070,0.17951337,2758.7,2758.1,1.8129]
[1646820621371,0.17951337,2758.7,2758.2,1.13298715]
[1646820621571,0.00204342,2758.6,2758.2,1.13298715]
[1646820622375,0.17951337,2758.7,2758.2,1.13298715]
[1646820622573,0.00204342,2758.5,2758.2,1.13298715]
[1646820623673,0.17951337,2758.7,2758.2,1.13298715]
[1646820623874,0.00204168,2758.5,2758.2,1.13298715]
[1646820624121,0.00204168,2758.5,2758.4,0.029168]
[1646820624720,0.03860426,2758.8,2758.4,0.029168]
[1646820625119,0.00204168,2758.6,2758.2,1.13298715]
[1646820625521,0.18177472,2758.6,2758.2,1.13298715]
[1646820625723,0.00204168,2758.6,2758.2,1.13298715]
[1646820625921,0.17979007,2758.9,2758.2,1.13298715]
[1646820626321,0.00204168,2758.5,2758.2,1.13298715]
[1646820626523,0.00204168,2758.5,2758.2,2.73298715]
[1646820627124,0.17979007,2758.7,2758.2,2.73298715]
[1646820627523,0.00204168,2758.5,2758.2,2.73298715]
[1646820627965,0.00204168,2758.5,2758.2,1.13298715]
[1646820628370,0.17979007,2758.8,2758.2,1.13298715]
[1646820628770,0.0020419,2758.5,2758.2,1.13298715]
[1646820629570,0.17979007,2758.8,2758.2,1.13298715]
[1646820629770,0.0020419,2758.5,2758.2,1.13298715]
[1646820630872,0.21561209,2758.6,2758.2,1.13298715]
[1646820631072,0.18183197,2758.5,2758.2,1.13298715]
[1646820631514,0.18183197,2758.5,2758.2,0.85597716]
[1646820632017,0.17979007,2758.5,2758.2,0.85597716]
[1646820632216,0.18183195,2758.5,2758.2,0.85597716]
[1646820633214,0.17979007,2758.5,2758.2,0.85597716]
[1646820633415,0.18183195,2758.5,2758.2,0.85597716]
[1646820634420,0.17979007,2758.5,2758.2,0.85597716]
[1646820634622,0.18183195,2758.5,2758.2,0.85597716]
[1646820635471,0.17979007,2758.5,2758.2,0.85597716]
[1646820635871,0.18183195,2758.5,2758.2,0.85597716]
[1646820636672,0.17979007,2758.5,2758.2,0.85597716]
[1646820637073,0.18183195,2758.5,2758.2,0.85597716]
[1646820637876,0.17979007,2758.5,2758.2,0.85597716]
[1646820638273,0.18183195,2758.5,2758.2,0.85597716]
[1646820639115,0.17979007,2758.5,2758.2,0.85597716]
[1646820639316,0.18183195,2758.5,2758.2,0.85597716]
[1646820639618,0.18183195,2758.5,2758.3,1.33943799]
[1646820639816,0.18183195,2758.5,2758.4,1.31026999]
[1646820640424,0.17979007,2758.5,2758.4,1.31026999]
[1646820641522,0.17979007,2758.5,2758.4,1.33943799]
[1646820643078,0.17979007,2758.5,2758.4,1.31026999]
[1646820646928,0.17979007,2758.5,2758.3,0.029168]
[1646820647329,0.17979007,2758.5,2758.4,1.31197879]
[1646820647728,0.18183194,2758.5,2758.4,1.31197879]
[1646820648736,0.17979007,2758.5,2758.4,1.31197879]
[1646820649836,0.17979007,2758.5,2758.4,1.31257218]
[1646820650036,0.17979007,2758.5,2758.3,0.029168]
[1646820650475,0.84656398,2758.5,2758.1,0.029168]
[1646820650678,0.84656398,2758.5,2758.2,1.31259812]
[1646820651473,0.84860586,2758.5,2758.2,1.31259812]
[1646820651675,0.17979007,2758.4,2757.9,0.93293426]
[1646820651973,0.17979007,2758.4,2758.0,1.31867654]
[1646820652382,4.34656398,2758.4,2758.0,1.31867654]
[1646820652578,0.18183195,2758.3,2758.1,1.31867654]
[1646820652778,0.18183195,2758.3,2757.7,3.0248]
[1646820652779,0.84860586,2758.3,2757.7,3.0248]
[1646820652980,0.17979007,2758.2,2757.8,1.31845125]
[1646820653180,0.17979007,2758.1,2757.8,1.31845125]
[1646820653383,0.17979007,2758.0,2757.9,1.31845125]
[1646820653579,0.17979007,2758.0,2757.9,2.41903859]
[1646820660377,0.17979007,2758.0,2757.9,1.31845125]
[1646820660777,0.21999625,2758.0,2757.9,1.31845125]
[1646820660979,0.21999625,2758.0,2757.7,1.31845125]
[1646820661175,0.17025471,2757.9,2757.8,1.31845125]
[1646820662020,0.17025471,2757.9,2757.5,1.31845125]
[1646820662219,0.17025471,2757.9,2757.7,1.10786311]
[1646820662427,0.17025471,2757.9,2757.8,1.31845125]
[1646820674679,0.17025471,2757.9,2757.8,1.31831066]
[1646820674881,0.17025471,2757.9,2757.4,1.31809875]
[1646820675079,0.17025471,2757.9,2757.5,1.31805391]
[1646820675278,0.17025471,2757.9,2757.6,1.31805391]
[1646820675482,3.67025471,2757.9,2757.7,1.31247296]
[1646820675678,0.30173899,2757.5,2757.3,2.34769026]
[1646820675877,0.30173899,2757.5,2757.3,1.11229026]
[1646820677122,0.30173899,2757.5,2757.2,0.00237412]
[1646820678725,0.30173899,2757.5,2757.0,1.2333]
[1646820678926,0.30173899,2757.5,2757.0,1.23709167]
[1646820679326,0.30173899,2757.5,2757.0,0.00379167]
[1646820679926,0.30173899,2757.5,2757.1,1.04653594]
[1646820681180,0.34909767,2757.5,2757.1,1.04653594]
[1646820688971,0.34909767,2757.5,2757.1,1.34653594]
[1646820689171,0.34545816,2757.5,2757.1,1.34653594]
[1646820690171,0.34545816,2757.5,2757.1,1.04653594]
[1646820690978,0.34545816,2757.5,2756.8,0.66523148]
[1646820691176,0.34545816,2757.5,2757.0,0.00391398]
[1646820692020,0.34545816,2757.5,2757.3,1.14595447]
[1646820693024,0.34545816,2757.5,2757.3,1.44595447]
[1646820693224,0.34545816,2757.5,2757.4,0.445]
[1646820694424,0.30173899,2757.5,2757.4,0.445]
[1646820694623,0.30173899,2757.5,2757.4,1.11023148]
[1646820694823,0.30173899,2757.5,2757.4,0.445]
[1646820695476,0.30173899,2757.5,2757.4,1.76208342]
[1646820696475,0.30173899,2757.5,2757.4,2.12468342]
[1646820698280,0.30173899,2757.5,2757.4,2.794215]
[1646820698480,0.30173899,2757.5,2757.4,1.31708342]
[1646820699529,0.47194193,2757.5,2757.4,1.31708342]
[1646820700128,0.52165486,2757.5,2757.4,1.34174467]
[1646820700333,0.35145192,2757.5,2757.4,1.34174467]
[1646820703474,0.52175028,2757.5,2757.4,1.34174467]
[1646820704279,0.35145192,2757.5,2757.4,1.34174467]
[1646820709235,0.52195721,2757.5,2757.4,1.34174467]
[1646820710479,0.52196154,2757.5,2757.4,1.34174467]
[1646820710685,0.35145192,2757.5,2757.4,1.34174467]
[1646820711080,4.02195498,2757.5,2757.4,1.34174467]
[1646820711284,1.55112298,2757.5,2757.4,1.34174467]
[1646820711679,0.55112298,2757.5,2757.4,1.34174467]
[1646820714421,0.52195498,2757.5,2757.4,1.34174467]
[1646820715831,0.52195498,2757.5,2757.4,1.34232248]
[1646820716029,0.52195498,2757.5,2757.4,0.02466125]
[1646820716227,0.52195498,2757.5,2757.4,1.34227323]
[1646820716429,0.52195498,2757.5,2757.1,1.1307403]
[1646820716627,0.17050306,2757.4,2757.2,1.31760359]
[1646820719376,0.35145192,2757.5,2757.2,1.31760359]
[1646820719578,0.17049947,2757.4,2757.2,1.31760359]
[1646820719776,0.35145192,2757.5,2757.4,0.30174862]
[1646820719979,0.52193133,2757.5,2757.4,0.30174862]
[1646820720180,0.52193133,2757.5,2757.4,1.61935221]
[1646820725876,0.00204143,2757.9,2757.5,4.5]
[1646820726188,0.00204143,2757.9,2757.6,0.3626]
[1646820726374,0.00204143,2757.9,2757.6,0.8076]
[1646820726776,0.00204143,2757.9,2757.7,1.44893788]
[1646820727077,0.029168,2758.2,2757.7,1.89393788]
[1646820727277,0.00204165,2757.9,2757.7,1.89393788]
[1646820727975,0.029168,2758.2,2757.7,2.19393788]
[1646820728175,1.2294,2758.6,2757.7,2.19393788]
[1646820728176,0.029168,2758.4,2758.3,1.0974628]
[1646820728377,1.2294,2758.6,2758.3,1.0974628]
[1646820728378,0.029168,2758.6,2758.3,1.0974628]
[1646820729621,0.03120967,2758.6,2758.3,1.0974628]
[1646820730424,0.029168,2758.6,2758.3,1.0974628]
[1646820730928,0.03120967,2758.6,2758.3,1.0974628]
[1646820731528,0.03120967,2758.6,2757.9,0.90658]
[1646820731727,0.029168,2758.6,2757.9,1.20658]
[1646820731929,0.03120959,2758.6,2757.9,1.20658]
[1646820732977,0.029168,2758.6,2758.1,1.18148482]
[1646820733176,0.00204159,2758.4,2758.1,1.18148482]
[1646820734082,0.029168,2758.6,2758.1,1.18148482]
[1646820735380,0.00204161,2758.5,2758.1,1.18148482]
[1646820736524,0.07568754,2758.6,2758.1,1.18148482]
[1646820736727,0.00204161,2758.4,2758.1,1.18148482]
[1646820737728,0.07568754,2758.6,2758.1,1.18148482]
[1646820737927,0.00204161,2758.4,2758.1,1.18148482]
[1646820738929,0.07568754,2758.6,2758.1,1.18148482]
[1646820739130,0.0020246,2758.4,2758.1,1.18148482]
[1646820740134,0.07568754,2758.6,2758.1,1.18148482]
[1646820740382,0.0020246,2758.4,2758.1,1.18148482]
[1646820740985,0.24310066,2758.0,2757.8,1.1538]
[1646820742090,0.24310066,2758.0,2757.9,1.19110716]
[1646820742884,0.24310066,2758.0,2757.4,0.66434862]
[1646820742885,0.24310066,2758.0,2757.4,0.30174862]
[1646820743086,0.029168,2757.8,2757.4,0.30174862]
[1646820743284,0.029168,2757.8,2757.4,0.27955362]
[1646820743686,0.24310066,2758.0,2757.4,0.27955362]
[1646820743887,0.029168,2757.7,2757.4,0.27955362]
[1646820745937,0.15277309,2757.6,2757.5,1.33354848]
[1646820746940,0.15277309,2757.6,2757.4,0.27955362]
[1646820747140,0.15277309,2757.6,2757.5,1.33355845]
[1646820747642,0.15277309,2757.6,2757.4,0.27955362]
[1646820748475,3.65277309,2757.6,2757.4,0.27955362]
[1646820748676,0.15277309,2757.5,2757.4,0.27955362]
[1646820749074,0.15277309,2757.5,2757.4,1.59044593]
[1646820750079,0.15277309,2757.6,2757.4,1.59044593]
[1646820750381,0.15277309,2757.5,2757.4,0.27955362]
[1646820750585,0.15277309,2757.6,2757.4,1.59034948]
[1646820750779,0.15277309,2757.6,2757.4,0.27955362]
[1646820751624,0.029168,2757.5,2757.4,0.27955362]
[1646820751826,0.18194109,2757.5,2757.4,0.27955362]
[1646820752231,0.36314109,2757.5,2757.4,0.27955362]
[1646820752434,3.86314109,2757.5,2757.4,0.27955362]
[1646820752628,4.16314109,2757.5,2757.4,0.27955362]
[1646820752830,5.16314109,2757.5,2757.4,0.27955362]
[1646820754235,4.86314109,2757.5,2757.4,0.27955362]
[1646820754437,1.33397309,2757.5,2757.4,0.27955362]
[1646820754836,0.15277309,2757.5,2757.4,0.27955362]
[1646820755485,0.33397309,2757.5,2757.4,0.27955362]
[1646820755685,0.15277309,2757.5,2757.4,0.27955362]
[1646820756085,3.65277309,2757.5,2757.4,0.27955362]
[1646820756286,4.65277309,2757.5,2757.4,0.27955362]
[1646820756485,4.68194109,2757.5,2757.4,0.27955362]
[1646820756684,1.18194109,2757.5,2757.4,0.27955362]
[1646820756885,4.68194109,2757.5,2757.4,0.27955362]
[1646820757086,3.68194109,2757.5,2757.4,0.27955362]
[1646820757288,4.98194109,2757.5,2757.4,0.27955362]
[1646820757886,1.48194109,2757.5,2757.4,0.27955362]
[1646820758288,0.48194109,2757.5,2757.4,0.27955362]
[1646820758887,3.98194109,2757.5,2757.4,0.27955362]
[1646820759332,4.98194109,2757.5,2757.4,0.27955362]
[1646820760136,4.98194109,2757.5,2757.4,0.30009238]
[1646820760337,1.48194109,2757.5,2757.4,0.30009238]
[1646820760736,0.48194109,2757.5,2757.4,0.30009238]
[1646820767128,0.48194109,2757.5,2757.4,0.29927875]
[1646820769235,0.18194109,2757.5,2757.4,0.29927875]
[1646820771486,0.15277309,2757.5,2757.4,0.29927875]
[1646820772186,0.15277309,2757.5,2757.4,1.36999102]
[1646820772589,0.04621991,2757.6,2757.4,2.68757474]
[1646820772788,0.04621991,2757.6,2757.5,1.31758372]
[1646820775135,0.029168,2757.9,2757.5,4.81758372]
[1646820775333,0.00244104,2757.9,2757.5,4.81758372]
[1646820775534,0.00244104,2757.9,2757.6,1.31758372]
[1646820775737,0.00244104,2757.9,2757.7,3.5]
[1646820775936,0.00244104,2757.9,2757.8,1.31758372]
[1646820776333,0.27226866,2758.0,2757.9,1.04258376]
[1646820776533,0.40854581,2758.0,2757.9,2.36016748]
[1646820777981,0.24310066,2758.0,2757.9,2.36016748]
[1646820781386,0.27226866,2758.0,2757.9,2.36016748]
[1646820782033,0.43786582,2758.0,2757.9,2.36016748]
[1646820782230,0.40869782,2758.0,2757.9,2.36016748]
[1646820782436,0.43786582,2758.0,2757.9,2.36016748]
[1646820782634,0.24310066,2758.0,2757.9,2.36016748]
[1646820784740,0.029168,2758.1,2758.0,6.0]
[1646820784938,0.029168,2758.1,2758.0,10.81758372]
[1646820784939,0.00244123,2758.1,2758.0,10.81758372]
[1646820785137,0.00244123,2758.1,2758.0,11.26258372]
[1646820785388,0.00244123,2758.1,2758.0,13.08528372]
[1646820785987,0.029168,2758.4,2758.0,13.08528372]
[1646820786192,0.029168,2758.4,2758.2,0.90636]
[1646820786389,0.029168,2758.5,2758.3,1.76258372]
[1646820786688,0.029168,2758.6,2758.4,2.22392222]
[1646820786888,0.029168,2758.6,2758.5,1.31758372]
[1646820787288,0.1847923,2758.6,2758.5,1.31758372]
[1646820787891,0.029168,2758.6,2758.5,1.31758372]
[1646820788092,0.18478117,2758.6,2758.5,1.31758372]
[1646820788493,0.00216838,2758.7,2758.5,1.31758372]
[1646820788795,0.03133638,2758.7,2758.5,1.31758372]
[1646820789036,0.15565576,2758.6,2758.4,1.2074]
[1646820789835,0.15809699,2758.6,2758.4,1.2074]
[1646820790638,0.029168,2758.7,2758.4,1.2074]
[1646820791038,0.00244123,2758.6,2758.4,1.2074]
[1646820791639,0.03160923,2758.6,2758.4,1.2074]
[1646820791840,0.029168,2758.6,2758.4,1.2074]
[1646820792242,0.00244123,2758.6,2758.4,1.2074]
[1646820793082,0.07884188,2758.8,2758.4,1.2074]
[1646820793281,0.00244123,2758.6,2758.4,1.2074]
[1646820793887,0.03160923,2758.6,2758.4,1.2074]
[1646820794287,0.029168,2758.6,2758.4,1.2074]
[1646820794487,0.029168,2758.7,2758.4,1.2074]
[1646820794687,0.04204797,2758.6,2758.5,0.0204677]
[1646820795487,0.03960674,2758.6,2758.5,0.0204677]
[1646820796088,0.03960674,2758.6,2758.5,0.5915045]
[1646820798041,0.03960674,2758.6,2758.5,0.9541045]
[1646820798242,0.03960674,2758.6,2758.5,0.5915045]
[1646820799843,0.00244123,2758.7,2758.5,0.61287934]
[1646820800289,0.039168,2758.8,2758.5,0.61287934]
[1646820800786,0.00244123,2758.7,2758.5,0.61287934]
[1646820801187,0.00244123,2758.7,2758.6,3.5]
[1646820801389,0.00244123,2758.7,2758.5,4.11287934]
[1646820801586,0.01,2758.8,2758.5,0.61287934]
[1646820801794,0.00244123,2758.7,2758.5,0.61287934]
[1646820802686,0.01,2758.8,2758.5,0.61287934]
[1646820803089,0.00244123,2758.7,2758.5,0.61287934]
[1646820804032,0.01,2758.8,2758.6,4.07100955]
[1646820804233,3.66773391,2759.7,2758.8,11.4325]
[1646820804439,1.58152223,2760.0,2758.8,11.4325]
[1646820804440,0.14600964,2759.6,2759.0,11.4325]
[1646820804634,0.88707863,2760.5,2759.0,11.4325]
[1646820804635,0.00096,2760.0,2759.2,11.4325]
[1646820804836,0.14224556,2760.0,2759.4,0.3625]
[1646820805036,0.14224556,2760.0,2759.5,0.445]
[1646820805234,0.14224556,2760.0,2759.8,0.90584]
[1646820806037,0.1811,2760.5,2760.0,6.0]
[1646820806242,0.90679595,2760.9,2760.2,6.3]
[1646820806243,0.01971732,2760.9,2760.2,6.3]
[1646820806439,0.01971732,2760.9,2760.3,5.31128]
[1646820806638,0.01971732,2760.9,2760.4,0.745]
[1646820807042,0.01971732,2760.9,2760.4,1.31562835]
[1646820807337,0.01971732,2760.9,2760.6,0.57060114]
[1646820808390,0.01971732,2760.9,2760.7,3.5]
[1646820808591,0.01971732,2760.9,2760.6,0.57060114]
[1646820810091,0.02212804,2760.9,2760.6,0.57060114]
[1646820811093,0.01971732,2760.9,2760.6,0.57060114]
[1646820811292,0.02212804,2760.9,2760.6,0.57060114]
[1646820812333,0.01971732,2760.9,2760.6,0.57060114]
[1646820812532,0.02212804,2760.9,2760.6,0.57060114]
[1646820813432,0.020738,2760.9,2760.6,0.57060114]
[1646820813635,0.01832728,2760.9,2760.6,0.57060114]
[1646820813834,0.020738,2760.9,2760.6,0.57060114]
[1646820814034,4.18364966,2760.9,2760.6,0.57060114]
[1646820814234,5.18364966,2760.9,2760.6,0.57060114]
[1646820814639,1.68364966,2760.9,2760.6,0.57060114]
[1646820814834,0.68123894,2760.9,2760.6,0.57060114]
[1646820815036,0.68364966,2760.9,2760.6,0.57060114]
[1646820815294,4.21945012,2760.9,2760.8,0.02194944]
[1646820815486,0.05653846,2760.9,2760.8,0.00921831]
[1646820815687,1.05653846,2760.9,2760.8,0.00921831]
[1646820815886,4.55412774,2760.9,2760.8,0.00921831]
[1646820816092,0.05412774,2760.9,2760.8,0.00921831]
[1646820816388,1.05412774,2760.9,2760.8,0.00921831]
[1646820816586,0.05412774,2760.9,2760.8,0.00921831]
[1646820818688,0.05690782,2760.9,2760.8,0.00921831]
[1646820821636,0.05690782,2760.9,2760.7,0.02194929]
[1646820823584,0.05910131,2760.9,2760.7,0.02194929]
[1646820824289,0.05690782,2760.9,2760.7,0.02194929]
[1646820824487,0.05690782,2760.9,2760.7,0.49457731]
[1646820824688,0.05910131,2760.9,2760.7,0.49457731]
[1646820825490,0.05690782,2760.9,2760.7,0.49457731]
[1646820825890,0.05910131,2760.9,2760.7,0.49457731]
[1646820826091,0.11564631,2760.8,2760.7,0.49457731]
[1646820826292,0.11564631,2760.8,2760.7,0.51619306]
[1646820826940,0.11564631,2760.8,2760.7,0.54536106]
[1646820828749,0.11564631,2760.8,2760.7,0.51619306]
[1646820829150,3.67255413,2760.9,2760.7,0.51619306]
[1646820829350,0.11564631,2760.8,2760.7,0.51619306]
[1646820829549,0.11564631,2760.8,2760.7,0.02161575]
[1646820831489,0.11564631,2760.8,2760.7,0.03007509]
[1646820834137,0.17255413,2760.9,2760.7,0.03007509]
[1646820834438,0.11564631,2760.8,2760.7,0.03007509]
[1646820836045,0.83746651,2760.9,2760.3,0.05924309]
[1646820836243,0.11564631,2760.8,2760.3,0.05924309]
[1646820837048,0.77855797,2760.8,2760.3,0.03007509]
[1646820837889,0.11766092,2760.7,2760.3,0.03007509]
[1646820838090,0.11564631,2760.6,2760.3,0.03007509]
[1646820838288,0.11564631,2760.5,2760.4,1.18240711]
[1646820841740,0.11564631,2760.5,2760.4,1.62740711]
[1646820841952,0.05690782,2760.9,2760.5,6.0]
[1646820842140,0.05690782,2760.9,2760.6,3.945]
[1646820842141,0.10667748,2760.8,2760.6,3.945]
[1646820842340,0.10667748,2760.8,2760.6,0.445]
[1646820842540,0.10667748,2760.8,2760.7,0.029168]
[1646820844144,0.10667748,2760.8,2760.7,3.529168]
[1646820844344,0.10667748,2760.8,2760.7,3.974168]
[1646820844547,0.10667748,2760.8,2760.5,3.529168]
[1646820844749,0.10667748,2760.8,2760.7,0.445]
[1646820844949,0.10667748,2760.8,2760.5,3.529168]
[1646820844950,0.10667748,2760.8,2760.5,3.974168]
[1646820846588,1.55667748,2760.8,2760.5,3.974168]
[1646820846789,1.45,2760.8,2760.5,3.974168]
[1646820847993,1.45,2760.8,2760.5,0.474168]
[1646820848593,1.45240572,2760.8,2760.5,3.5]
[1646820848895,1.45240572,2760.8,2760.4,1.51260513]
[1646820849143,1.45240572,2760.8,2760.5,0.445]
[1646820849741,1.45,2760.8,2760.5,0.445]
[1646820849942,1.45240572,2760.8,2760.4,5.01260513]
[1646820850143,1.45240572,2760.8,2760.5,0.445]
[1646820850345,1.45240572,2760.8,2760.6,3.5]
[1646820850548,0.02110736,2760.9,2760.7,6.0]
[1646820850747,0.02110736,2760.9,2760.8,3.945]
[1646820850953,0.02110736,2760.9,2760.8,0.445]
[1646820851547,0.02110736,2760.9,2760.8,3.945]
[1646820851747,0.02110736,2760.9,2760.8,0.445]
[1646820852147,0.02110736,2760.9,2760.8,0.745]
[1646820852347,0.02110736,2760.9,2760.8,0.3]
[1646820852648,0.02110736,2760.9,2760.7,0.02605986]
[1646820852893,0.02110736,2760.9,2760.8,0.445]
[1646820853093,0.02110736,2760.9,2760.8,0.745]
[1646820853295,0.02110736,2760.9,2760.8,0.445]
[1646820853496,0.02110736,2760.9,2760.8,3.5]
[1646820854094,0.02110736,2760.9,2760.8,0.445]
[1646820854695,0.02110736,2760.9,2760.7,0.02605986]
[1646820855700,0.05455357,2760.9,2760.4,2.65423186]
[1646820856301,0.05455357,2760.9,2760.4,3.09923186]
[1646820856937,0.05455357,2760.9,2760.4,2.79923186]
[1646820857940,0.05455357,2760.9,2760.4,4.09923186]
[1646820858141,0.05455357,2760.9,2760.4,7.59923186]
[1646820858341,0.05455357,2760.9,2760.4,9.19836896]
[1646820858545,0.05455357,2760.9,2760.4,5.69836896]
[1646820858745,0.05455357,2760.9,2760.4,4.09923186]
[1646820859141,0.05455357,2760.9,2760.4,15.16923186]
[1646820860396,0.05455357,2760.9,2760.5,3.8625]
[1646820860397,0.04221472,2760.9,2760.5,3.8625]
[1646820860697,0.07473846,2760.9,2760.6,0.83455731]
[1646820861299,0.07473846,2760.9,2760.7,11.07]
[1646820861498,0.07473846,2760.9,2760.8,0.445]
[1646820862097,0.07473846,2760.9,2760.8,1.84852462]
[1646820864537,0.27560656,2761.1,2761.0,0.06666122]
[1646820864740,0.3568668,2761.1,2761.0,1.47018584]
[1646820864935,0.27560656,2761.1,2761.0,1.47018584]
[1646820865741,0.35689355,2761.1,2761.0,1.47018584]
[1646820865940,0.27560656,2761.1,2761.0,1.47018584]
[1646820867142,0.31526814,2761.1,2761.0,1.47018584]
[1646820870594,0.39652282,2761.1,2761.0,0.06666122]
[1646820871194,0.39652282,2761.1,2761.0,0.10239921]
[1646820874547,0.42569082,2761.1,2761.0,0.10239921]
[1646820875792,0.42569082,2761.1,2761.0,0.084329]
[1646820877000,0.39652282,2761.1,2761.0,0.084329]
[1646820878497,0.39652282,2761.1,2761.0,1.4964025]
[1646820879437,0.39652282,2761.1,2761.0,1.49666646]
[1646820882150,0.42569082,2761.1,2761.0,0.084329]
[1646820882346,0.72569082,2761.1,2761.0,0.084329]
[1646820882545,0.42569082,2761.1,2761.0,0.084329]
[1646820882807,1.38860248,2761.1,2761.0,0.084329]
[1646820883198,0.72569082,2761.1,2761.0,0.084329]
[1646820883796,0.72569082,2761.1,2760.8,0.01972876]
[1646820883797,4.5,2761.0,2760.8,0.01972876]
[1646820883997,4.27714391,2760.9,2760.8,0.01972876]
[1646820884198,3.61042268,2760.9,2760.8,0.01972876]
[1646820884397,4.61042268,2760.9,2760.8,0.01972876]
[1646820884596,4.61042268,2760.9,2760.8,0.01775589]
[1646820885802,5.49750131,2760.9,2760.8,0.01775589]
[1646820886001,4.61042268,2760.9,2759.9,0.88501108]
[1646820886203,0.029168,2760.1,2760.0,1.41343417]
[1646820886402,0.029168,2760.2,2760.0,1.41343417]
[1646820886640,0.08125468,2760.1,2760.0,1.41343417]
[1646820887348,0.08125468,2760.1,2759.9,1.41343417]
[1646820887545,0.11042268,2760.0,2759.9,1.41343417]
[1646820887944,0.11042268,2760.0,2759.8,0.02030607]
[1646820888143,0.08125468,2759.9,2759.8,0.02030607]
[1646820889346,3.58125468,2759.9,2759.8,0.02030607]
[1646820889544,3.88125468,2759.9,2759.8,0.02030607]
[1646820889746,4.88125468,2759.9,2759.8,0.02030607]
[1646820889949,1.38125468,2759.9,2759.8,0.02030607]
[1646820890394,0.08125468,2759.9,2759.8,0.02030607]
[1646820890597,0.08125468,2759.9,2759.8,1.43083993]
[1646820890995,0.08125468,2759.9,2759.8,1.41053386]
[1646820891395,0.08125468,2759.9,2759.5,1.41053386]
[1646820891601,0.029168,2760.0,2759.6,1.41053386]
[1646820891794,0.0746533,2759.9,2759.7,1.41053386]
[1646820891996,0.0746533,2759.9,2759.8,1.41053386]
[1646820892395,0.0746533,2759.9,2759.5,1.41053386]
[1646820892599,0.01390292,2760.1,2759.5,1.41053386]
[1646820892897,0.07465564,2760.0,2759.5,1.41053386]
[1646820894141,0.07465564,2760.0,2759.9,1.06097729]
[1646820894541,0.01390292,2760.1,2759.9,2.91474808]
[1646820894842,0.01390292,2760.1,2760.0,1.40877079]
[1646820895040,0.01390292,2760.1,2760.0,1.85377079]
[1646820895444,0.01606643,2760.7,2760.4,1.08898743]
[1646820895647,0.07464321,2760.6,2760.4,1.08898743]
[1646820897893,0.26385773,2760.8,2760.4,1.08898743]
[1646820898187,0.07463968,2760.7,2760.4,1.08898743]
[1646820900399,0.0139707,2760.5,2760.4,1.08898743]
[1646820900794,0.0139707,2760.5,2760.4,2.49785545]
[1646820903546,0.0139707,2760.5,2760.4,2.94285545]
[1646820903746,0.0139707,2760.5,2760.4,3.24285545]
[1646820904647,0.25,2760.8,2760.7,0.01258566]
[1646820904847,0.25,2760.8,2760.7,1.42145368]
[1646820906297,0.32463042,2760.8,2760.7,1.42145368]
[1646820906493,0.32463042,2760.8,2760.7,1.42127114]
[1646820906494,0.25,2760.8,2760.7,1.42127114]
[1646820906694,0.32463064,2760.8,2760.7,1.42127081]
[1646820906994,0.32463064,2760.8,2760.7,0.01258566]
[1646820907398,0.25,2760.8,2760.7,0.01258566]
[1646820907595,0.32463166,2760.8,2760.7,0.01258566]
[1646820908296,0.25,2760.8,2760.7,1.42142824]
[1646820909037,3.04014931,2760.8,2760.7,1.42142824]
[1646820909239,5.83029862,2760.8,2760.7,1.42142824]
[1646820910648,0.25,2761.0,2760.8,5.5]
[1646820910845,0.06526814,2761.1,2760.8,5.8625]
[1646820910846,0.002012,2760.9,2760.8,5.8625]
[1646820911042,0.00804695,2761.3,2761.0,11.4325]
[1646820911244,0.00804695,2761.3,2761.2,0.3625]
[1646820911444,0.00804695,2761.3,2761.2,2.2165988]
[1646820911942,8.5,2761.8,2761.3,1.14325501]
[1646820912144,0.07461311,2761.7,2761.4,0.8075]
[1646820914093,0.07461311,2761.7,2761.4,0.445]
[1646820915296,0.07461311,2761.7,2761.0,0.445]
[1646820915501,0.029168,2761.5,2761.0,0.445]
[1646820915700,0.07461311,2761.4,2761.2,0.03622968]
[1646820916745,0.07700778,2761.4,2761.2,0.03622968]
[1646820917545,0.10378111,2761.3,2761.2,0.03622968]
[1646820920149,0.10378111,2761.3,2760.7,1.17061534]
[1646820920395,0.029168,2761.1,2760.6,1.03649798]
[1646820920597,0.07461311,2761.0,2760.6,1.03649798]
[1646820921595,0.07700771,2761.0,2760.6,1.03649798]
[1646820922497,0.07461311,2761.0,2760.6,1.03649798]
[1646820922696,0.07700771,2761.0,2760.6,1.03649798]
[1646820923802,0.07461311,2761.0,2760.6,1.03649798]
[1646820924047,0.07700771,2761.0,2760.7,1.4192453]
[1646820924848,0.07461311,2760.9,2760.7,1.4192453]
[1646820925049,0.029168,2761.1,2760.7,1.4192453]
[1646820925254,0.07701771,2761.0,2760.8,0.01974216]
[1646820926154,0.07462306,2761.0,2760.8,0.01974216]
[1646820926359,0.07701773,2761.0,2760.8,0.01974216]
[1646820926554,0.00239467,2761.0,2760.8,0.01974216]
[1646820927356,0.07461836,2761.1,2760.8,0.01974216]
[1646820927660,0.00239467,2761.0,2760.8,0.01974216]
[1646820927892,0.00239467,2761.0,2760.9,1.4192551]
[1646820928492,0.10378327,2761.4,2760.9,1.4192551]
[1646820928691,0.10378327,2761.4,2760.8,0.46474216]
[1646820928692,0.07461527,2761.3,2761.1,0.99228541]
[1646820928894,0.00239467,2761.1,2760.8,0.01974216]
[1646820929291,0.07700994,2761.1,2760.8,0.01974216]
[1646820929796,0.07461527,2761.1,2760.8,0.01974216]
[1646820929994,0.07700994,2761.1,2760.8,0.01974216]